[Event "Titled Tuesday Blitz February 14 Early 2023"]
[White "Kanyamarala, Trisha"]
[Black "Pasti, Aron"]
[WhiteFideId "45004722"]
[BlackFideId "785857"]
[WhiteElo "2278"]
[BlackElo "2361"]
[Result "1-0"]
[Round "08"]
[TimeControl "180+2"]
[Date "2023.02.14"]
[WhiteClock "0:00:08"]
[BlackClock "0:00:03"]

1. d4 {[%clk 0:02:52]}  d5 {[%clk 0:02:49]} 2. c4 {[%clk 0:02:47]}  e6 {[%clk 0:02:48]} 3. Nc3 {[%clk 0:02:46]}  Nf6 {[%clk 0:02:48]} 4. cxd5 {[%clk 0:02:44]}  exd5 {[%clk 0:02:49]} 5. Bg5 {[%clk 0:02:44]}  Be7 {[%clk 0:02:49]} 6. e3 {[%clk 0:02:44]}  O-O {[%clk 0:02:50]} 7. Bd3 {[%clk 0:02:44]}  Re8 {[%clk 0:02:50]} 8. Nge2 {[%clk 0:02:44]}  h6 {[%clk 0:02:51]} 9. Bh4 {[%clk 0:02:43]}  c6 {[%clk 0:02:51]} 10. O-O {[%clk 0:02:43]}  Nbd7 {[%clk 0:02:51]} 11. f3 {[%clk 0:02:40]}  Nf8 {[%clk 0:02:50]} 12. Qd2 {[%clk 0:02:20]}  b5 {[%clk 0:02:49]} 13. h3 {[%clk 0:02:09]}  a6 {[%clk 0:02:46]} 14. e4 {[%clk 0:02:08]}  b4 {[%clk 0:02:40]} 15. Na4 {[%clk 0:02:04]}  dxe4 {[%clk 0:02:41]} 16. fxe4 {[%clk 0:02:04]}  Nxe4 {[%clk 0:02:40]} 17. Bxe4 {[%clk 0:01:58]}  Bxh4 {[%clk 0:02:23]} 18. Bxc6 {[%clk 0:01:57]}  Bd7 {[%clk 0:01:47]} 19. Bxa8 {[%clk 0:01:56]}  Qxa8 {[%clk 0:01:48]} 20. Nb6 {[%clk 0:01:45]}  Qc6 {[%clk 0:01:39]} 21. Nxd7 {[%clk 0:01:43]}  Qxd7 {[%clk 0:01:39]} 22. Nf4 {[%clk 0:01:38]}  Re4 {[%clk 0:01:30]} 23. d5 {[%clk 0:01:30]}  Bg5 {[%clk 0:01:29]} 24. g3 {[%clk 0:01:13]}  Ng6 {[%clk 0:01:18]} 25. Qd3 {[%clk 0:01:08]}  Qa7+ {[%clk 0:00:53]} 26. Kh1 {[%clk 0:01:04]}  Re3 {[%clk 0:00:53]} 27. Qf5 {[%clk 0:00:53]}  Rxg3 {[%clk 0:00:20]} 28. Nxg6 {[%clk 0:00:51]}  fxg6 {[%clk 0:00:20]} 29. Qe6+ {[%clk 0:00:51]}  Kh7 {[%clk 0:00:20]} 30. Rf8 {[%clk 0:00:51]}  Rxh3+ {[%clk 0:00:09]} 31. Qxh3 {[%clk 0:00:30]}  Qc5 {[%clk 0:00:09]} 32. Qf3 {[%clk 0:00:18]}  Qd4 {[%clk 0:00:05]} 33. Rf1 {[%clk 0:00:13]}  Bf6 {[%clk 0:00:03]} 34. Rxf6 {[%clk 0:00:12]}  Qh4+ {[%clk 0:00:03]} 35. Kg2 {[%clk 0:00:12]}  gxf6 {[%clk 0:00:03]} 36. Qg3 {[%clk 0:00:11]}  Qe4+ {[%clk 0:00:03]} 37. Qf3 {[%clk 0:00:10]}  Qc2+ {[%clk 0:00:02]} 38. Rf2 {[%clk 0:00:10]}  Qc5 {[%clk 0:00:02]} 39. Qxf6 {[%clk 0:00:10]}  Qxd5+ {[%clk 0:00:02]} 40. Qf3 {[%clk 0:00:10]}  Qg5+ {[%clk 0:00:02]} 41. Qg3 {[%clk 0:00:10]}  Qd5+ {[%clk 0:00:03]} 42. Rf3 {[%clk 0:00:10]}  h5 {[%clk 0:00:03]} 43. Qf2 {[%clk 0:00:09]}  Kh6 {[%clk 0:00:03]} 44. Qe3+ {[%clk 0:00:09]}  Kh7 {[%clk 0:00:03]} 45. Qe7+ {[%clk 0:00:09]}  Kh6 {[%clk 0:00:03]} 46. Qf8+ {[%clk 0:00:09]}  Kg5 {[%clk 0:00:03]} 47. Qf4# {[%clk 0:00:08]} 1-0


[Site "https://www.chess.com"]

[Event "Titled Tuesday Blitz February 14 Early 2023"]
[White "Shuvalov, Evgenij"]
[Black "Mouhamad, Joachim"]
[WhiteFideId "4187237"]
[BlackFideId "656410"]
[WhiteElo "2038"]
[BlackElo "2238"]
[Result "0-1"]
[Round "08"]
[TimeControl "180+2"]
[Date "2023.02.14"]
[WhiteClock "0:00:54"]
[BlackClock "0:00:37"]

1. d4 {[%clk 0:03:00]}  d5 {[%clk 0:03:00]} 2. c4 {[%clk 0:03:00]}  e6 {[%clk 0:03:00]} 3. Nc3 {[%clk 0:03:00]}  a6 {[%clk 0:02:59]} 4. cxd5 {[%clk 0:02:58]}  exd5 {[%clk 0:03:00]} 5. Nf3 {[%clk 0:02:57]}  Nf6 {[%clk 0:02:59]} 6. Bg5 {[%clk 0:02:57]}  Be6 {[%clk 0:03:00]} 7. e3 {[%clk 0:02:56]}  Nbd7 {[%clk 0:02:59]} 8. Bd3 {[%clk 0:02:56]}  c6 {[%clk 0:02:58]} 9. O-O {[%clk 0:02:54]}  Bd6 {[%clk 0:02:57]} 10. h3 {[%clk 0:02:54]}  Qc7 {[%clk 0:02:50]} 11. Rc1 {[%clk 0:02:47]}  h6 {[%clk 0:02:49]} 12. Bxf6 {[%clk 0:02:46]}  Nxf6 {[%clk 0:02:50]} 13. a3 {[%clk 0:02:37]}  O-O {[%clk 0:02:42]} 14. Bb1 {[%clk 0:02:35]}  Qe7 {[%clk 0:02:31]} 15. Qd3 {[%clk 0:02:31]}  g6 {[%clk 0:02:28]} 16. Qd1 {[%clk 0:02:28]}  Nh5 {[%clk 0:02:19]} 17. Ne5 {[%clk 0:02:24]}  Ng7 {[%clk 0:02:10]} 18. g4 {[%clk 0:02:18]}  h5 {[%clk 0:02:04]} 19. f3 {[%clk 0:02:15]}  Qh4 {[%clk 0:02:02]} 20. Kg2 {[%clk 0:02:11]}  f6 {[%clk 0:01:56]} 21. Qe1 {[%clk 0:01:49]}  Qxe1 {[%clk 0:01:55]} 22. Rcxe1 {[%clk 0:01:50]}  fxe5 {[%clk 0:01:55]} 23. Bxg6 {[%clk 0:01:49]}  hxg4 {[%clk 0:01:50]} 24. hxg4 {[%clk 0:01:47]}  exd4 {[%clk 0:01:39]} 25. exd4 {[%clk 0:01:48]}  Bf7 {[%clk 0:01:27]} 26. Bc2 {[%clk 0:01:43]}  Rae8 {[%clk 0:01:27]} 27. Rd1 {[%clk 0:01:42]}  Bf4 {[%clk 0:01:24]} 28. Rh1 {[%clk 0:01:40]}  Ne6 {[%clk 0:01:19]} 29. Ne2 {[%clk 0:01:25]}  Bd6 {[%clk 0:01:19]} 30. Rh6 {[%clk 0:01:16]}  Nf4+ {[%clk 0:01:15]} 31. Nxf4 {[%clk 0:01:15]}  Bxf4 {[%clk 0:01:16]} 32. Rf6 {[%clk 0:01:10]}  Re2+ {[%clk 0:00:54]} 33. Kf1 {[%clk 0:01:10]}  Rxc2 {[%clk 0:00:52]} 34. Rxf4 {[%clk 0:01:10]}  Rxb2 {[%clk 0:00:44]} 35. Re1 {[%clk 0:01:10]}  Bg6 {[%clk 0:00:44]} 36. Rxf8+ {[%clk 0:01:06]}  Kxf8 {[%clk 0:00:44]} 37. Re5 {[%clk 0:01:03]}  Rb3 {[%clk 0:00:39]} 38. Kf2 {[%clk 0:01:02]}  Rxa3 {[%clk 0:00:39]} 39. f4 {[%clk 0:00:58]}  Be4 {[%clk 0:00:39]} 40. f5 {[%clk 0:00:58]}  a5 {[%clk 0:00:39]} 41. Ke2 {[%clk 0:00:54]}  Rg3 {[%clk 0:00:37]} 0-1


[Site "https://www.chess.com"]

[Event "Titled Tuesday Blitz February 14 Early 2023"]
[White "Lehtosaari, Mauri"]
[Black "Jimenez Garcia, Emmanuel"]
[WhiteFideId "501999"]
[BlackFideId "6504779"]
[WhiteElo "2176"]
[BlackElo "2410"]
[Result "1-0"]
[Round "08"]
[TimeControl "180+2"]
[Date "2023.02.14"]
[WhiteClock "0:01:10"]
[BlackClock "0:01:02"]

1. d4 {[%clk 0:02:51]}  Nf6 {[%clk 0:02:59]} 2. Nf3 {[%clk 0:02:50]}  b6 {[%clk 0:02:59]} 3. Bg5 {[%clk 0:02:50]}  Bb7 {[%clk 0:02:58]} 4. Nbd2 {[%clk 0:02:51]}  e6 {[%clk 0:02:57]} 5. e3 {[%clk 0:02:51]}  Be7 {[%clk 0:02:57]} 6. Bd3 {[%clk 0:02:51]}  h6 {[%clk 0:02:56]} 7. Bh4 {[%clk 0:02:51]}  O-O {[%clk 0:02:56]} 8. O-O {[%clk 0:02:51]}  c5 {[%clk 0:02:52]} 9. c3 {[%clk 0:02:50]}  Nc6 {[%clk 0:02:52]} 10. a4 {[%clk 0:02:49]}  d5 {[%clk 0:02:48]} 11. Qb1 {[%clk 0:02:46]}  cxd4 {[%clk 0:02:41]} 12. exd4 {[%clk 0:02:44]}  Nh5 {[%clk 0:02:42]} 13. Bg3 {[%clk 0:02:36]}  Nxg3 {[%clk 0:02:39]} 14. hxg3 {[%clk 0:02:36]}  Bd6 {[%clk 0:02:32]} 15. Re1 {[%clk 0:02:31]}  Qc7 {[%clk 0:02:27]} 16. Nf1 {[%clk 0:02:27]}  Na5 {[%clk 0:02:22]} 17. Qc2 {[%clk 0:02:21]}  Nc4 {[%clk 0:02:19]} 18. Ne3 {[%clk 0:02:18]}  Nxe3 {[%clk 0:02:11]} 19. Rxe3 {[%clk 0:02:19]}  Bc6 {[%clk 0:02:07]} 20. Qe2 {[%clk 0:02:10]}  Rfe8 {[%clk 0:02:02]} 21. Bc2 {[%clk 0:02:08]}  g6 {[%clk 0:01:50]} 22. Ne5 {[%clk 0:01:38]}  Bf8 {[%clk 0:01:42]} 23. Qg4 {[%clk 0:01:30]}  g5 {[%clk 0:01:13]} 24. Qh5 {[%clk 0:01:22]}  f6 {[%clk 0:01:03]} 25. Qg6+ {[%clk 0:01:11]}  Qg7 {[%clk 0:01:02]} 26. Qxg7+ {[%clk 0:01:10]} 1-0


[Site "https://www.chess.com"]

[Event "Titled Tuesday Blitz February 14 Early 2023"]
[White "Degenbaev, Aziz"]
[Black "Todorovic, Bojan"]
[WhiteFideId "13802640"]
[BlackFideId "917087"]
[WhiteElo "2203"]
[BlackElo "2195"]
[Result "0-1"]
[Round "08"]
[TimeControl "180+2"]
[Date "2023.02.14"]
[WhiteClock "0:00:56"]
[BlackClock "0:00:36"]

1. e4 {[%clk 0:02:56]}  g6 {[%clk 0:02:58]} 2. d4 {[%clk 0:02:56]}  Bg7 {[%clk 0:02:58]} 3. Nc3 {[%clk 0:02:57]}  d6 {[%clk 0:02:57]} 4. Be3 {[%clk 0:02:56]}  a6 {[%clk 0:02:57]} 5. Qd2 {[%clk 0:02:54]}  Nd7 {[%clk 0:02:55]} 6. f3 {[%clk 0:02:47]}  b5 {[%clk 0:02:50]} 7. O-O-O {[%clk 0:02:48]}  Bb7 {[%clk 0:02:49]} 8. Nge2 {[%clk 0:02:43]}  c5 {[%clk 0:02:48]} 9. Nf4 {[%clk 0:02:39]}  cxd4 {[%clk 0:02:42]} 10. Bxd4 {[%clk 0:02:35]}  e5 {[%clk 0:02:41]} 11. Bf2 {[%clk 0:02:34]}  exf4 {[%clk 0:02:37]} 12. Qxd6 {[%clk 0:02:34]}  Be5 {[%clk 0:02:31]} 13. Qd2 {[%clk 0:02:29]}  Ngf6 {[%clk 0:02:30]} 14. g3 {[%clk 0:02:24]}  Qc7 {[%clk 0:02:16]} 15. Ne2 {[%clk 0:02:19]}  fxg3 {[%clk 0:01:20]} 16. hxg3 {[%clk 0:02:19]}  O-O {[%clk 0:01:18]} 17. Qh6 {[%clk 0:01:58]}  Rfc8 {[%clk 0:01:17]} 18. Rd2 {[%clk 0:01:58]}  Nf8 {[%clk 0:01:15]} 19. Bg2 {[%clk 0:01:25]}  Bxe4 {[%clk 0:01:03]} 20. fxe4 {[%clk 0:01:22]}  Ng4 {[%clk 0:01:03]} 21. Qg5 {[%clk 0:01:10]}  Nxf2 {[%clk 0:01:02]} 22. Rf1 {[%clk 0:01:11]}  Nd3+ {[%clk 0:00:58]} 23. Kb1 {[%clk 0:01:08]}  Nxb2 {[%clk 0:00:56]} 24. Bh3 {[%clk 0:01:00]}  Nc4 {[%clk 0:00:55]} 25. Bxc8 {[%clk 0:00:57]}  Nxd2+ {[%clk 0:00:50]} 26. Qxd2 {[%clk 0:00:57]}  Rxc8 {[%clk 0:00:50]} 27. Nf4 {[%clk 0:00:56]}  Qc3 {[%clk 0:00:40]} 28. Qxc3 {[%clk 0:00:54]}  Rxc3 {[%clk 0:00:40]} 29. Nd5 {[%clk 0:00:55]}  Rxg3 {[%clk 0:00:39]} 30. Ne7+ {[%clk 0:00:55]}  Kg7 {[%clk 0:00:39]} 31. Nc6 {[%clk 0:00:56]}  Bc3 {[%clk 0:00:36]} 0-1


[Site "https://www.chess.com"]

[Event "Titled Tuesday Blitz February 14 Early 2023"]
[White "Matveeva, Olga"]
[Black "Kavutskiy, Konstantin"]
[WhiteFideId "24107018"]
[BlackFideId "2026384"]
[WhiteElo "2128"]
[BlackElo "2414"]
[Result "0-1"]
[Round "08"]
[TimeControl "180+2"]
[Date "2023.02.14"]
[WhiteClock "0:00:02"]
[BlackClock "0:01:47"]

1. d4 {[%clk 0:03:00]}  Nf6 {[%clk 0:02:58]} 2. c4 {[%clk 0:03:00]}  g6 {[%clk 0:02:58]} 3. Nf3 {[%clk 0:02:59]}  Bg7 {[%clk 0:02:59]} 4. g3 {[%clk 0:03:00]}  O-O {[%clk 0:02:59]} 5. Bg2 {[%clk 0:03:00]}  d6 {[%clk 0:02:59]} 6. O-O {[%clk 0:03:00]}  Nc6 {[%clk 0:02:58]} 7. Nc3 {[%clk 0:03:00]}  e5 {[%clk 0:02:58]} 8. d5 {[%clk 0:02:58]}  Nb8 {[%clk 0:02:57]} 9. e4 {[%clk 0:02:58]}  a5 {[%clk 0:02:57]} 10. Ne1 {[%clk 0:02:56]}  Na6 {[%clk 0:02:56]} 11. Nd3 {[%clk 0:02:56]}  Nd7 {[%clk 0:02:55]} 12. Be3 {[%clk 0:02:50]}  b6 {[%clk 0:02:55]} 13. f4 {[%clk 0:02:48]}  exf4 {[%clk 0:02:54]} 14. gxf4 {[%clk 0:02:47]}  f5 {[%clk 0:02:54]} 15. e5 {[%clk 0:02:08]}  dxe5 {[%clk 0:02:53]} 16. fxe5 {[%clk 0:01:58]}  Nxe5 {[%clk 0:02:52]} 17. Nxe5 {[%clk 0:01:57]}  Bxe5 {[%clk 0:02:52]} 18. d6 {[%clk 0:01:33]}  Be6 {[%clk 0:02:35]} 19. Qf3 {[%clk 0:00:29]}  Qxd6 {[%clk 0:02:23]} 20. h3 {[%clk 0:00:19]}  Rad8 {[%clk 0:02:18]} 21. Rad1 {[%clk 0:00:19]}  Qe7 {[%clk 0:02:15]} 22. Nd5 {[%clk 0:00:18]}  Bxd5 {[%clk 0:02:07]} 23. Rxd5 {[%clk 0:00:19]}  Nc5 {[%clk 0:02:04]} 24. Bxc5 {[%clk 0:00:18]}  bxc5 {[%clk 0:02:05]} 25. Rfd1 {[%clk 0:00:16]}  Bd4+ {[%clk 0:02:03]} 26. Kh1 {[%clk 0:00:15]}  Qf6 {[%clk 0:01:59]} 27. b3 {[%clk 0:00:12]}  Kg7 {[%clk 0:01:58]} 28. Re1 {[%clk 0:00:11]}  Rfe8 {[%clk 0:01:56]} 29. Rxe8 {[%clk 0:00:10]}  Rxe8 {[%clk 0:01:57]} 30. Rd7+ {[%clk 0:00:08]}  Kh8 {[%clk 0:01:55]} 31. Qd1 {[%clk 0:00:08]}  Qh4 {[%clk 0:01:52]} 32. Kh2 {[%clk 0:00:05]}  Qf4+ {[%clk 0:01:47]} 33. Kh1 {[%clk 0:00:05]}  Qg3 {[%clk 0:01:47]} 34. Rxd4 {[%clk 0:00:02]}  Re1+ {[%clk 0:01:47]} 0-1


[Site "https://www.chess.com"]

[Event "Titled Tuesday Blitz February 14 Early 2023"]
[White "rikchessmx"]
[Black "Eynullayev, Atilla"]
[BlackFideId "13413570"]
[WhiteElo "2312"]
[BlackElo "2281"]
[Result "1-0"]
[Round "08"]
[TimeControl "180+2"]
[Date "2023.02.14"]
[WhiteClock "0:02:42"]
[BlackClock "0:02:12"]

1. e4 {[%clk 0:03:00]}  c5 {[%clk 0:02:59]} 2. Nf3 {[%clk 0:02:58]}  d6 {[%clk 0:02:58]} 3. d4 {[%clk 0:02:58]}  cxd4 {[%clk 0:02:59]} 4. Nxd4 {[%clk 0:02:59]}  Nf6 {[%clk 0:02:59]} 5. Nc3 {[%clk 0:02:59]}  a6 {[%clk 0:03:00]} 6. f4 {[%clk 0:03:00]}  e5 {[%clk 0:03:00]} 7. Nf3 {[%clk 0:02:59]}  Nbd7 {[%clk 0:03:00]} 8. Bd3 {[%clk 0:02:58]}  Be7 {[%clk 0:03:01]} 9. O-O {[%clk 0:02:58]}  O-O {[%clk 0:03:01]} 10. Kh1 {[%clk 0:02:59]}  b5 {[%clk 0:03:02]} 11. a3 {[%clk 0:02:58]}  Bb7 {[%clk 0:02:45]} 12. Qe1 {[%clk 0:02:57]}  Rc8 {[%clk 0:02:46]} 13. fxe5 {[%clk 0:02:57]}  dxe5 {[%clk 0:02:45]} 14. Bg5 {[%clk 0:02:56]}  b4 {[%clk 0:02:36]} 15. axb4 {[%clk 0:02:54]}  Bxb4 {[%clk 0:02:36]} 16. Qh4 {[%clk 0:02:52]}  Be7 {[%clk 0:02:29]} 17. Nd5 {[%clk 0:02:48]}  Bxd5 {[%clk 0:02:27]} 18. exd5 {[%clk 0:02:48]}  h6 {[%clk 0:02:24]} 19. Bxh6 {[%clk 0:02:46]}  gxh6 {[%clk 0:02:13]} 20. Qxh6 {[%clk 0:02:44]}  e4 {[%clk 0:02:12]} 21. Ng5 {[%clk 0:02:42]}  exd3 {[%clk 0:02:12]} 22. Ra4 {[%clk 0:02:42]} 1-0


[Site "https://www.chess.com"]

[Event "Titled Tuesday Blitz February 14 Early 2023"]
[White "Dragomirescu, Angela"]
[Black "Smith, Garrett L"]
[WhiteFideId "1209914"]
[BlackFideId "2024829"]
[WhiteElo "2130"]
[BlackElo "2047"]
[Result "1-0"]
[Round "08"]
[TimeControl "180+2"]
[Date "2023.02.14"]
[WhiteClock "0:01:41"]
[BlackClock "0:00:34"]

1. e4 {[%clk 0:03:00]}  c5 {[%clk 0:03:00]} 2. Nf3 {[%clk 0:03:00]}  Nc6 {[%clk 0:03:00]} 3. Bb5 {[%clk 0:03:00]}  e6 {[%clk 0:03:00]} 4. O-O {[%clk 0:02:59]}  Nge7 {[%clk 0:03:00]} 5. Re1 {[%clk 0:03:00]}  a6 {[%clk 0:03:00]} 6. Bxc6 {[%clk 0:03:00]}  Nxc6 {[%clk 0:03:00]} 7. d4 {[%clk 0:03:01]}  cxd4 {[%clk 0:03:00]} 8. Nxd4 {[%clk 0:03:02]}  Qc7 {[%clk 0:02:55]} 9. Nxc6 {[%clk 0:03:02]}  bxc6 {[%clk 0:02:53]} 10. e5 {[%clk 0:03:01]}  Be7 {[%clk 0:02:45]} 11. Qg4 {[%clk 0:02:57]}  g6 {[%clk 0:02:40]} 12. Nc3 {[%clk 0:02:58]}  d5 {[%clk 0:02:32]} 13. exd6 {[%clk 0:02:58]}  Qxd6 {[%clk 0:02:26]} 14. Bf4 {[%clk 0:02:45]}  Qb4 {[%clk 0:02:04]} 15. Qf3 {[%clk 0:02:06]}  O-O {[%clk 0:01:45]} 16. Rad1 {[%clk 0:01:48]}  a5 {[%clk 0:01:22]} 17. Ne4 {[%clk 0:01:44]}  Qxb2 {[%clk 0:01:16]} 18. c3 {[%clk 0:01:43]}  Qb5 {[%clk 0:01:12]} 19. Bh6 {[%clk 0:01:42]}  Qf5 {[%clk 0:01:01]} 20. Bxf8 {[%clk 0:01:40]}  Qxf3 {[%clk 0:01:00]} 21. Bxe7 {[%clk 0:01:40]}  Qxd1 {[%clk 0:00:34]} 22. Rxd1 {[%clk 0:01:41]} 1-0


[Site "https://www.chess.com"]

[Event "Titled Tuesday Blitz February 14 Early 2023"]
[White "Lesbekova, Assel"]
[Black "Balabayeva, Xeniya"]
[WhiteFideId "13713248"]
[BlackFideId "13719688"]
[WhiteElo "1772"]
[BlackElo "2191"]
[Result "1-0"]
[Round "08"]
[TimeControl "180+2"]
[Date "2023.02.14"]
[WhiteClock "0:00:04"]
[BlackClock "0:00:01"]

1. e4 {[%clk 0:03:00]}  c6 {[%clk 0:02:55]} 2. d4 {[%clk 0:03:00]}  d5 {[%clk 0:02:55]} 3. Nd2 {[%clk 0:03:00]}  dxe4 {[%clk 0:02:55]} 4. Nxe4 {[%clk 0:03:01]}  Nf6 {[%clk 0:02:56]} 5. Ng3 {[%clk 0:03:01]}  h5 {[%clk 0:02:43]} 6. h4 {[%clk 0:02:59]}  Bg4 {[%clk 0:02:37]} 7. Be2 {[%clk 0:02:59]}  e6 {[%clk 0:02:31]} 8. Bg5 {[%clk 0:02:58]}  Bxe2 {[%clk 0:02:29]} 9. N1xe2 {[%clk 0:02:55]}  Be7 {[%clk 0:02:29]} 10. Qd2 {[%clk 0:02:46]}  Nbd7 {[%clk 0:02:17]} 11. Nf4 {[%clk 0:02:41]}  Qb6 {[%clk 0:02:03]} 12. O-O-O {[%clk 0:02:33]}  g6 {[%clk 0:01:46]} 13. c3 {[%clk 0:02:28]}  O-O-O {[%clk 0:01:43]} 14. Qe2 {[%clk 0:02:14]}  Rhe8 {[%clk 0:01:33]} 15. Nd3 {[%clk 0:02:12]}  Qa6 {[%clk 0:01:28]} 16. Kb1 {[%clk 0:02:08]}  Nd5 {[%clk 0:00:52]} 17. Bxe7 {[%clk 0:02:03]}  Rxe7 {[%clk 0:00:51]} 18. Ne4 {[%clk 0:02:01]}  N7b6 {[%clk 0:00:44]} 19. Qc2 {[%clk 0:01:30]}  Nc4 {[%clk 0:00:38]} 20. Nec5 {[%clk 0:01:24]}  Qb5 {[%clk 0:00:32]} 21. Ka1 {[%clk 0:01:17]}  Nd6 {[%clk 0:00:13]} 22. b3 {[%clk 0:01:07]}  Qa5 {[%clk 0:00:12]} 23. c4 {[%clk 0:00:59]}  Nf6 {[%clk 0:00:09]} 24. b4 {[%clk 0:00:54]}  Qc7 {[%clk 0:00:09]} 25. Ne5 {[%clk 0:00:52]}  Nf5 {[%clk 0:00:09]} 26. Qb2 {[%clk 0:00:37]}  Ng4 {[%clk 0:00:09]} 27. Nxg4 {[%clk 0:00:34]}  hxg4 {[%clk 0:00:10]} 28. g3 {[%clk 0:00:25]}  Kb8 {[%clk 0:00:09]} 29. Rd2 {[%clk 0:00:23]}  Ree8 {[%clk 0:00:06]} 30. Rhd1 {[%clk 0:00:24]}  Nd6 {[%clk 0:00:06]} 31. Qb3 {[%clk 0:00:20]}  Ka8 {[%clk 0:00:06]} 32. Rc2 {[%clk 0:00:17]}  b6 {[%clk 0:00:06]} 33. Nd3 {[%clk 0:00:15]}  Nf5 {[%clk 0:00:06]} 34. Rcd2 {[%clk 0:00:10]}  Rxd4 {[%clk 0:00:05]} 35. Nc1 {[%clk 0:00:08]}  Rxd2 {[%clk 0:00:04]} 36. Rxd2 {[%clk 0:00:09]}  Rd8 {[%clk 0:00:05]} 37. Qb2 {[%clk 0:00:08]}  Rxd2 {[%clk 0:00:04]} 38. Qxd2 {[%clk 0:00:09]}  Kb7 {[%clk 0:00:04]} 39. Qc3 {[%clk 0:00:07]}  Qd6 {[%clk 0:00:04]} 40. Nd3 {[%clk 0:00:07]}  Qd4 {[%clk 0:00:04]} 41. Qxd4 {[%clk 0:00:07]}  Nxd4 {[%clk 0:00:04]} 42. Ne5 {[%clk 0:00:07]}  Nc2+ {[%clk 0:00:02]} 43. Kb1 {[%clk 0:00:07]}  Nxb4 {[%clk 0:00:02]} 44. Nxf7 {[%clk 0:00:08]}  Nd3 {[%clk 0:00:02]} 45. Nh8 {[%clk 0:00:06]}  Nxf2 {[%clk 0:00:02]} 46. Nxg6 {[%clk 0:00:06]}  Ne4 {[%clk 0:00:02]} 47. Ne5 {[%clk 0:00:06]}  Nxg3 {[%clk 0:00:02]} 48. Nxg4 {[%clk 0:00:06]}  Nf5 {[%clk 0:00:02]} 49. h5 {[%clk 0:00:06]}  Kc7 {[%clk 0:00:02]} 50. h6 {[%clk 0:00:06]}  Ne7 {[%clk 0:00:01]} 51. Ne5 {[%clk 0:00:04]} 1-0


[Site "https://www.chess.com"]

[Event "Titled Tuesday Blitz February 14 Early 2023"]
[White "Womacka, Mathias"]
[Black "Thiel, Thomas"]
[WhiteFideId "4611390"]
[BlackFideId "4615964"]
[WhiteElo "2396"]
[BlackElo "2234"]
[Result "1-0"]
[Round "08"]
[TimeControl "180+2"]
[Date "2023.02.14"]
[WhiteClock "0:00:42"]
[BlackClock "0:00:05"]

1. e4 {[%clk 0:03:00]}  d5 {[%clk 0:02:54]} 2. exd5 {[%clk 0:03:00]}  Nf6 {[%clk 0:02:54]} 3. Nf3 {[%clk 0:02:59]}  Nxd5 {[%clk 0:02:52]} 4. d4 {[%clk 0:02:58]}  g6 {[%clk 0:02:51]} 5. Bc4 {[%clk 0:02:58]}  Bg7 {[%clk 0:02:50]} 6. O-O {[%clk 0:02:58]}  O-O {[%clk 0:02:49]} 7. Re1 {[%clk 0:02:59]}  Nc6 {[%clk 0:02:48]} 8. c3 {[%clk 0:02:58]}  e5 {[%clk 0:02:42]} 9. dxe5 {[%clk 0:02:54]}  Nb6 {[%clk 0:02:41]} 10. Qxd8 {[%clk 0:02:51]}  Rxd8 {[%clk 0:02:42]} 11. Bb3 {[%clk 0:02:47]}  Re8 {[%clk 0:02:41]} 12. Bf4 {[%clk 0:02:42]}  Bg4 {[%clk 0:02:41]} 13. Nbd2 {[%clk 0:02:41]}  Nd7 {[%clk 0:02:32]} 14. Ba4 {[%clk 0:02:24]}  Ne7 {[%clk 0:02:00]} 15. h3 {[%clk 0:02:18]}  Be6 {[%clk 0:01:58]} 16. Ng5 {[%clk 0:02:14]}  c6 {[%clk 0:01:58]} 17. Nxe6 {[%clk 0:02:12]}  fxe6 {[%clk 0:01:59]} 18. Nf3 {[%clk 0:02:08]}  Nc5 {[%clk 0:01:52]} 19. Bc2 {[%clk 0:02:06]}  Nd5 {[%clk 0:01:45]} 20. Bg5 {[%clk 0:01:54]}  h6 {[%clk 0:01:37]} 21. Bd2 {[%clk 0:01:52]}  g5 {[%clk 0:01:37]} 22. c4 {[%clk 0:01:51]}  Ne7 {[%clk 0:01:36]} 23. Bb4 {[%clk 0:01:48]}  Nd7 {[%clk 0:01:34]} 24. Rad1 {[%clk 0:01:42]}  Rad8 {[%clk 0:01:30]} 25. Bd6 {[%clk 0:01:42]}  Nc8 {[%clk 0:01:26]} 26. c5 {[%clk 0:01:19]}  Nxd6 {[%clk 0:01:21]} 27. cxd6 {[%clk 0:01:18]}  Rf8 {[%clk 0:01:15]} 28. Bb3 {[%clk 0:01:17]}  Rde8 {[%clk 0:01:15]} 29. Nd4 {[%clk 0:01:17]}  Nc5 {[%clk 0:01:10]} 30. d7 {[%clk 0:00:59]}  Re7 {[%clk 0:00:21]} 31. Nxc6 {[%clk 0:00:56]}  bxc6 {[%clk 0:00:17]} 32. d8=Q {[%clk 0:00:54]}  Rxd8 {[%clk 0:00:17]} 33. Rxd8+ {[%clk 0:00:55]}  Kf7 {[%clk 0:00:16]} 34. Rc1 {[%clk 0:00:46]}  Nxb3 {[%clk 0:00:13]} 35. axb3 {[%clk 0:00:47]}  Bxe5 {[%clk 0:00:10]} 36. Rxc6 {[%clk 0:00:45]}  Bxb2 {[%clk 0:00:09]} 37. Rcd6 {[%clk 0:00:43]}  Be5 {[%clk 0:00:06]} 38. R6d7 {[%clk 0:00:43]}  Bc7 {[%clk 0:00:04]} 39. Rxe7+ {[%clk 0:00:42]}  Kxe7 {[%clk 0:00:05]} 40. Rh8 {[%clk 0:00:42]} 1-0


[Site "https://www.chess.com"]

[Event "Titled Tuesday Blitz February 14 Early 2023"]
[White "Tymrakiewicz, Rafal"]
[Black "De Souza, Cristiano Gomes"]
[WhiteFideId "1108832"]
[BlackFideId "2151758"]
[WhiteElo "2144"]
[BlackElo "2018"]
[Result "1-0"]
[Round "08"]
[TimeControl "180+2"]
[Date "2023.02.14"]
[WhiteClock "0:01:46"]
[BlackClock "0:01:45"]

1. e4 {[%clk 0:02:47]}  c5 {[%clk 0:02:58]} 2. d4 {[%clk 0:02:45]}  cxd4 {[%clk 0:02:58]} 3. c3 {[%clk 0:02:45]}  dxc3 {[%clk 0:02:58]} 4. Nxc3 {[%clk 0:02:45]}  Nc6 {[%clk 0:02:58]} 5. Nf3 {[%clk 0:02:45]}  e6 {[%clk 0:02:58]} 6. Bc4 {[%clk 0:02:45]}  a6 {[%clk 0:02:57]} 7. O-O {[%clk 0:02:44]}  Nge7 {[%clk 0:02:57]} 8. Bg5 {[%clk 0:02:43]}  f6 {[%clk 0:02:57]} 9. Be3 {[%clk 0:02:40]}  Ng6 {[%clk 0:02:58]} 10. Bb3 {[%clk 0:02:33]}  Bb4 {[%clk 0:02:55]} 11. Rc1 {[%clk 0:02:30]}  O-O {[%clk 0:02:54]} 12. Nd4 {[%clk 0:02:22]}  Qe7 {[%clk 0:02:45]} 13. Nf5 {[%clk 0:02:16]}  Qf7 {[%clk 0:02:38]} 14. Nd6 {[%clk 0:02:15]}  Qe7 {[%clk 0:02:33]} 15. Nf5 {[%clk 0:02:12]}  Qf7 {[%clk 0:02:30]} 16. f4 {[%clk 0:02:13]}  b5 {[%clk 0:02:14]} 17. Nd6 {[%clk 0:02:12]}  Qe7 {[%clk 0:02:12]} 18. Nf5 {[%clk 0:01:56]}  Qf7 {[%clk 0:02:10]} 19. a3 {[%clk 0:01:49]}  Bxc3 {[%clk 0:02:09]} 20. Rxc3 {[%clk 0:01:49]}  Rb8 {[%clk 0:01:50]} 21. Bc5 {[%clk 0:01:49]}  Rd8 {[%clk 0:01:45]} 22. Nd6 {[%clk 0:01:46]} 1-0


[Site "https://www.chess.com"]